[Event "Frauenbundesliga 2024-25"]
[Site "Germany"]
[Date "2025.01.26"]
[Round "4.9"]
[White "Cosma, Elena-Luminita"]
[Black "Nebolsina, Vera"]
[Result "1/2-1/2"]
[Annotator "TA"]
[ECO "A49"]
[WhiteElo "2221"]
[BlackElo "2213"]
[PlyCount "144"]
[EventDate "2024.11.06"]
[EventType "team-tourn"]
[EventCountry "GER"]
[SourceTitle "playchess.com"]
[Source "ChessBase"]
[SourceQuality "1"]
[TimeControl "40/5400+30:1800+30"]

{[%evp 17,144,39,55,36,31,32,33,16,146,147,149,148,154,159,154,138,148,143,148,145,149,151,170,144,144,145,141,147,164,151,218,148,140,153,162,90,103,72,121,83,85,84,152,131,149,137,338,338,343,342,327,312,419,419,414,395,822,803,760,578,522,425,653,638,594,123,104,116,122,118,150,99,170,81,71,47,34,33,78,50,203,1,35,30,74,88,95,-49,-51,-56,-21,-30,-22,-24,-25,-28,-37,-79,-54,-65,-34,-46,-12,-16,-10,-10,-10,-10,-8,-8,-8,-97,-99,-171,-166,-174,0,0,0,0,0,0,0,0,0,0,0,0,0]} 1. d4 {[%emt 0:00:05]} Nf6 {[%emt 0:00:17]} 2. Nf3 {[%emt 0:00:06]} g6 {[%emt 0:00:16]} 3. g3 {[%emt 0:00:30]} Bg7 {[%emt 0:00:33]} 4. Bg2 {[%emt 0:00:07]} O-O {[%emt 0:00:33]} 5. O-O {[%emt 0:00:08]} d6 {[%emt 0:02:56]} 6. b3 {[%emt 0:00:10]} Nbd7 {[%emt 0:02:14]} 7. Bb2 {[%emt 0:00:13]} e5 {[%emt 0:01:02]} 8. dxe5 {[%emt 0:00:29]} Ng4 {[%emt 0:00:07]} 9. Qd2 {[%emt 0:06:43]} dxe5 {[%emt 0:09:45]} 10. h3 {[%emt 0:20:06] A49: 1 d4 Nf6 2 Nf3 g6 3 g3: Anti-King's Indian systems.} Nh6 {[%emt 0:00:32]} 11. Rd1 {[%emt 0:04:53][%cal Of3e5]} f6 {[%emt 0:00:29]} 12. c4 {[%emt 0:03:17] White is slightly better.} e4 $146 {[%emt 0:06:59]} (12... c6 $11 {keeps the balance.}) (12... Nf7 13. Nc3 f5 14. e4 f4 15. gxf4 exf4 16. Qxf4 Nfe5 17. Qg3 Nxf3+ 18. Bxf3 Qe8 {1-0 Mamedjarova,Z (2274)-Allahverdiyeva,A (2088) AZE-ch (Women) 2021 (7)}) 13. Qd5+ $16 {[%emt 0:04:57]} Nf7 {[%emt 0:00:08]} 14. Qxe4 {[%emt 0:00:12] White has more active pieces.} Re8 {[%emt 0:00:07]} 15. Qc2 {[%emt 0:00:17]} Qe7 {[%emt 0:00:10]} 16. Nc3 {[%emt 0:02:06]} c6 {[%emt 0:00:14] Prevents Nd5} 17. Re1 {[%emt 0:03:15]} Nc5 {[%emt 0:13:40]} 18. Ba3 {[%emt 0:12:46]} Bf8 {[%emt 0:00:55]} 19. Rad1 {[%emt 0:14:55]} Qc7 {[%emt 0:07:22]} 20. Bb2 {[%emt 0:02:09]} f5 {[%emt 0:10:18]} 21. Nd4 {[%emt 0:04:55]} a5 {[%emt 0:04:32]} 22. e3 {[%emt 0:05:54]} Ng5 {[%emt 0:06:34]} 23. Nde2 {[%emt 0:07:16]} a4 {[%emt 0:11:58]} (23... Bg7 $16 24. Nf4 Be6) 24. Nxa4 {[%emt 0:02:09]} Nxa4 {[%emt 0:05:40]} 25. bxa4 {[%emt 0:00:04]} Ne6 {[%emt 0:00:06]} 26. Nc3 {[%emt 0:04:11]} (26. Nf4 $18) 26... Qa5 {[%emt 0:04:27]} 27. Kh2 {[%emt 0:00:21]} Qc5 {[%emt 0:02:50]} (27... Bg7) 28. Ne2 {[%emt 0:00:43]} Qb4 {[%emt 0:03:19]} 29. e4 {[%emt 0:00:24]} Rxa4 {[%emt 0:04:42]} ({Black should play} 29... Nc5) 30. Nc3 $1 {[%emt 0:00:15]} (30. exf5 $6 Rxa2 31. Rd2 Bg7 $11) 30... Ra5 {[%emt 0:00:15]} 31. exf5 {[%emt 0:00:11]} Rxf5 $2 {[%emt 0:00:11]} (31... gxf5 $16 32. Rd2 Nd4 33. Rxd4 (33. Rxe8 Nxc2 34. Rxc2 Bd7 $11) 33... Rxe1) 32. Ne4 $18 {[%emt 0:00:24]} Be7 {[%emt 0:00:33]} 33. a3 {[%emt 0:00:24]} Qa5 {[%emt 0:00:14]} 34. Re2 {[%emt 0:00:42]} Ref8 {[%emt 0:00:27]} 35. Nd6 {[%emt 0:00:38]} Bxd6 {[%emt 0:00:23]} 36. Rxd6 {[%emt 0:00:05]} Ng5 {[%emt 0:03:42]} (36... Ng7 37. c5 (37. Re7 R5f7 $18) 37... R5f7) 37. f4 {[%emt 0:00:57]} Nf7 {[%emt 0:00:00]} 38. Rd1 {[%emt 0:00:50]} Rh5 {[%emt 0:00:00] Black is weak on the dark squares} 39. Qe4 {[%emt 0:01:22]} Rxh3+ {[%emt 0:00:31]} (39... Qc5 $142 40. Qc2 Qa5) 40. Bxh3 {[%emt 0:00:41] Qd4 would kill now. A strong pair of Bishops.} Qh5 {[%emt 0:00:02] [#]} 41. Qd4 $2 {[%emt 0:30:30] Prevents Bxh3} Qxe2+ $16 {[%emt 0:30:23]} 42. Bg2 {[%emt 0:00:00][%csl Gb2][%cal Rd4g7] Chess con chili.} Qh5+ {[%emt 0:00:00]} 43. Kg1 {[%emt 0:00:00]} Qh6 {[%emt 0:00:00] [#] Repels Qg7+} 44. Re1 {[%emt 0:00:00]} (44. Bf3 $142 $1) 44... g5 {[%emt 0:00:00]} 45. Rf1 {[%emt 0:00:00]} (45. Bf3 $18 {[%cal Of3h5] has better winning chances.} gxf4 46. gxf4 Qg6+ 47. Kf2) 45... Rd8 {[%emt 0:00:00]} 46. Qc3 {[%emt 0:00:00]} gxf4 {[%emt 0:00:00]} 47. Rxf4 {[%emt 0:00:00]} Qg5 {[%emt 0:00:00]} 48. c5 {[%emt 0:01:15][%csl Ob7,Oh7] Black has weak pawns} Re8 $2 {[%emt 0:00:00] Prevents Qe3.} (48... Rd1+ $14 49. Kf2 Bf5) 49. Re4 $2 {[%emt 0:01:12]} (49. Bf1 $18 {and Bc4 would now be decisive} Be6 50. Be2) 49... Rd8 {[%emt 0:00:00]} 50. Re1 {[%emt 0:00:49]} h5 {[%emt 0:00:00]} 51. a4 {[%emt 0:00:33]} Bf5 {[%emt 0:00:00]} 52. Qf6 {[%emt 0:00:54]} ({White should try} 52. a5 $16) 52... Qxg3 $15 {[%emt 0:00:00] Black attacks} 53. Bc3 {[%emt 0:01:07][%cal Oe1f1] [#]} Be4 $1 {[%emt 0:01:25]} 54. Rxe4 {[%emt 0:00:32]} Rd1+ {[%emt 0:00:05]} 55. Be1 {[%emt 0:00:16]} Rxe1+ {[%emt 0:00:03]} 56. Rxe1 {[%emt 0:00:03]} Qxe1+ $11 {[%emt 0:00:03][%mdl 4096] Endgame KQB-KQN. Black is a pawn up.} 57. Bf1 {[%emt 0:00:34]} Qe3+ {[%emt 0:00:42]} 58. Qf2 $1 {[%emt 0:00:30]} Qg5+ {[%emt 0:01:05]} 59. Kh1 $1 {[%emt 0:00:14]} Ne5 {[%emt 0:07:11]} 60. a5 $1 {[%emt 0:00:19]} Kg7 {[%emt 0:00:00]} 61. a6 {[%emt 0:00:17]} bxa6 {[%emt 0:00:00]} 62. Bxa6 {[%emt 0:00:02]} Qg4 {[%emt 0:00:00]} 63. Be2 {[%emt 0:03:03]} Qe4+ {[%emt 0:00:00]} 64. Kg1 {[%emt 0:00:00]} (64. Qg2+ $11 Qxg2+ 65. Kxg2) 64... Ng4 $17 {[%emt 0:00:00]} 65. Bxg4 {[%emt 0:00:00]} (65. Qg2 $17 {was called for.} Qb4 66. Qg3) 65... hxg4 {[%emt 0:00:00] KQ-KQ. Black is a pawn up.} 66. Kh2 {[%emt 0:00:00]} Kg6 $2 {[%emt 0:00:00]} (66... Qe5+ $19 67. Kg2 Kg6) 67. Kg3 $11 {[%emt 0:00:00] The position is equal.} Qf3+ {[%emt 0:00:00]} 68. Qxf3 {[%emt 0:00:00]} gxf3 {[%emt 0:00:00]} 69. Kxf3 {[%emt 0:00:00]} Kf5 {[%emt 0:00:00]} 70. Ke3 {[%emt 0:00:00]} Ke5 {[%emt 0:00:05]} 71. Kd3 {[%emt 0:00:10]} Kd5 {[%emt 0:00:30]} 72. Kc2 {[%emt 0:00:30]} Kxc5 {[%emt 0:00:30] Weighted Error Value: White=0.39/Black=0.39  Loses game:     	---       	Black=1      Missed win:     	White=1     	Black=1      Mistake:       	White=6     	Black=7      Inaccurate:     	White=5     	Black=6      OK:         	White=16    	Black=20     Best:        	White=9     	Black=7      Strong:       	White=4     	---} 1/2-1/2

[Event "Frauenbundesliga 2024-25"]
[Site "Germany"]
[Date "2025.01.26"]
[Round "4.9"]
[White "Ter-Avetisjana, Agnesa Stepania"]
[Black "Lach, Aleksandra"]
[Result "1-0"]
[Annotator "TA"]
[ECO "C10"]
[WhiteElo "2125"]
[BlackElo "2214"]
[PlyCount "97"]
[EventDate "2024.11.06"]
[EventType "team-tourn"]
[EventCountry "GER"]
[SourceTitle "playchess.com"]
[Source "ChessBase"]
[SourceQuality "1"]
[TimeControl "40/5400+30:1800+30"]

{[%evp 24,97,15,12,16,13,11,10,12,0,0,0,3,0,0,0,2,-3,25,7,18,7,42,10,9,0,9,0,0,0,0,-25,0,0,24,0,0,-18,0,0,0,0,0,0,0,0,0,-48,-66,-47,0,0,0,0,16,19,23,15,41,37,45,34,75,12,458,440,621,613,674,613,29989,29990,29990,29990,29990,29991]} 1. e4 {[%emt 0:00:02]} e6 {[%emt 0:00:21]} 2. d4 {[%emt 0:00:08]} d5 {[%emt 0:00:05]} 3. Nd2 {[%emt 0:00:06]} dxe4 {[%emt 0:00:20]} 4. Nxe4 {[%emt 0:00:09]} Bd7 {[%emt 0:00:09]} 5. Nf3 {[%emt 0:00:23]} Bc6 {[%emt 0:05:19]} 6. Bd3 {[%emt 0:00:23]} Nd7 {[%emt 0:00:33]} 7. O-O {[%emt 0:01:09]} Ngf6 {[%emt 0:00:10]} 8. Qe2 {[%emt 0:01:31]} Nxe4 {[%emt 0:03:07]} 9. Bxe4 {[%emt 0:00:09]} Bxe4 {[%emt 0:00:04]} 10. Qxe4 {[%emt 0:00:10]} c6 {[%emt 0:00:25]} 11. b3 {[%emt 0:02:36]} Be7 {[%emt 0:07:35]} 12. Bb2 {[%emt 0:01:29]} O-O {[%emt 0:02:48]} 13. c4 {[%emt 0:00:43]} Qa5 {[%emt 0:08:17] is the legacy move (13...Re8). C10: French with 3 Nc3: Unusual Black 3rd moves and 3...dxe4.} 14. Rfd1 {[%emt 0:04:39]} Rfe8 {[%emt 0:03:49]} 15. a4 $146 {[%emt 0:02:15]} (15. a3 Rad8 16. Re1 Bf6 17. Rad1 Qa6 18. Qc2 b5 19. c5 Qb7 20. Re4 Nf8 21. h4 {½-½ Ramnath,B (2372)-Girinath,P (2378) IND-chA Mumbai 2009 (11)}) 15... Bf6 {[%emt 0:07:28] The position is equal.} 16. Qc2 {[%emt 0:02:01]} Rad8 {[%emt 0:11:42]} 17. Bc3 {[%emt 0:01:05]} Qh5 {[%emt 0:00:49]} 18. Qb2 {[%emt 0:00:50]} Nf8 {[%emt 0:00:56][%cal Bd7f8,Bf8g6,Bg6f4][%mdl 32]} 19. Re1 {[%emt 0:01:16]} Ng6 {[%emt 0:08:18]} 20. Re4 {[%emt 0:00:29]} Qf5 {[%emt 0:12:11]} 21. Rae1 {[%emt 0:02:06]} h5 {[%emt 0:02:10]} 22. b4 {[%emt 0:12:15]} h4 {[%emt 0:05:18]} 23. h3 {[%emt 0:02:51]} Nf4 {[%emt 0:02:51][%cal Of4h3]} 24. R1e3 {[%emt 0:00:52]} Rd7 {[%emt 0:05:55]} 25. b5 {[%emt 0:13:26]} Rc8 {[%emt 0:02:19]} 26. bxc6 {[%emt 0:08:49]} bxc6 {[%emt 0:00:34]} 27. Kh2 {[%emt 0:07:45]} Ng6 {[%emt 0:06:04]} (27... Rdd8 {seems wilder.} 28. Qa1 Rb8 29. Qe1 Rb7) 28. Rg4 {[%emt 0:03:07]} Qh5 {[%emt 0:01:34]} 29. Qc2 {[%emt 0:08:19]} Bd8 {[%emt 0:00:59]} 30. Kh1 {[%emt 0:08:07]} f5 {[%emt 0:00:57]} 31. Rxg6 {[%emt 0:00:57]} Qxg6 {[%emt 0:00:07]} 32. Ne5 {[%emt 0:00:06][%csl LRd7,LRg6]} Qe8 {[%emt 0:00:44]} 33. Nxd7 {[%emt 0:00:05]} Qxd7 {[%emt 0:00:03]} 34. Qe2 {[%emt 0:00:13]} Rb8 {[%emt 0:00:59]} 35. d5 {[%emt 0:12:40]} (35. Rxe6 $11 Rb1+ 36. Kh2) 35... cxd5 $15 {[%emt 0:00:51]} (35... Rb1+ 36. Kh2 cxd5 37. Rxe6 $11) 36. Rxe6 {[%emt 0:02:06]} Rb1+ {[%emt 0:01:26]} (36... d4 $1 $15 37. Bxd4 (37. Re8+ $2 Kf7 $19) 37... Kf7 (37... Rb1+ 38. Kh2 $11)) 37. Kh2 $1 $11 {[%emt 0:00:04]} Kf7 {[%emt 0:00:47]} (37... Qxa4 38. Re8+ (38. cxd5 Bc7+ 39. d6 Bxd6+ 40. Rxd6 Qf4+ 41. g3 Qxd6 $18)) 38. Re3 {[%emt 0:00:57] [#] White wants to mate with Qh5+.} Bc7+ {[%emt 0:00:47]} 39. g3 {[%emt 0:01:17]} (39. Be5 d4 (39... Bxe5+ 40. Rxe5 Kf6 41. cxd5 $18) 40. Rd3 Rc1 41. Qh5+ Kg8) 39... g6 {[%emt 0:00:25] Threatens to win with ...d4. Dodges Qh5} (39... Qxa4 40. Re7+ (40. cxd5 hxg3+ 41. fxg3 Kf8 $18) (40. Qh5+ Kg8 $18) 40... Kf8 41. Bxg7+ (41. Rxc7 hxg3+ 42. fxg3 Re1 43. Bxe1 Kg8 44. Qe6+ Kh8 45. Qc8+ Qe8 46. Qxe8+ Kh7 47. Qh5+ Kg8 48. Rc8#) 41... Kg8 42. Qe6+ Kh7 43. Be5#) 40. cxd5 {[%emt 0:01:10][%cal Bc4d5,Bd5d6,Bd6d7][%mdl 32]} f4 {[%emt 0:00:38]} 41. Rd3 {[%emt 0:01:15] Dancing on a razor blade.} hxg3+ {[%emt 0:14:35]} 42. fxg3 {[%emt 0:08:54][%cal Bf2g3,Bg3f4][%mdl 32] [#]} Bd6 {[%emt 0:08:13]} (42... fxg3+ 43. Kg2 Bb6 44. Kxg3 (44. Rf3+ Kg8 $11)) 43. Be5 {[%emt 0:09:58]} ({White should try} 43. gxf4 $16 {Strongly threatening Be5.} Bxf4+ 44. Kg2) 43... Bc5 $2 {[%emt 0:03:06][%mdl 8192] This costs Black the game.} (43... Bxe5 $1 $11 {and Black is okay.} 44. Qxe5 Qxa4 (44... fxg3+ 45. Kxg3 Qe7 46. Rf3+ Ke8 47. Re3 $14) 45. Qxf4+ (45. gxf4 Qc2+ 46. Kg3 Rg1+ 47. Kf3 Qxd3+ 48. Qe3 Qxd5+ 49. Qe4 Rf1+ 50. Kg2 Qxe4+ 51. Kxf1 Qc2 52. Kg1 Ke6 53. Kf1 Kf5 54. Kg1 Kxf4 55. Kh1 Kg3 56. Kg1 Qg2#) 45... Qxf4 46. gxf4 a5) 44. gxf4 $18 {[%emt 0:05:09][%cal Of4f5]} (44. Bxf4 $2 {loses.} Rh1+ 45. Kg2 Qxh3+ 46. Kf3 Rf1+ $19) 44... Qxa4 {[%emt 0:01:44]} (44... Bg1+ $142 45. Kg3 Bb6) 45. d6 {[%emt 0:03:36]} Bb6 {[%emt 0:02:41]} 46. d7 {[%emt 0:01:09]} Qa5 {[%emt 0:00:23]} 47. Bc3 {[%emt 0:00:53][%csl Gd7][%cal Re2e8] White mates. Dodges Re1} Bg1+ {[%emt 0:01:43]} 48. Kg2 {[%emt 0:00:13][%csl Gd7][%cal Re2e8]} Qd8 {[%emt 0:00:13]} 49. Qa2+ {[%emt 0:00:08] Weighted Error Value: White=0.11 (very precise) /Black=0.43  Loses game:     	---       	Black=1      Mistake:       	White=2     	Black=2      Inaccurate:     	White=1     	Black=4      OK:         	White=9     	Black=8      Best:        	White=3     	Black=1      Strong:       	White=1     	---} 1-0

[Event "Frauenbundesliga 2024-25"]
[Site "Germany"]
[Date "2025.01.26"]
[Round "4.10"]
[White "Salimova, Nurgyul"]
[Black "Movsesian, Julia"]
[Result "1-0"]
[Annotator "TA"]
[ECO "E05"]
[WhiteElo "2402"]
[BlackElo "2212"]
[PlyCount "55"]
[EventDate "2024.11.06"]
[EventType "team-tourn"]
[EventCountry "GER"]
[SourceTitle "playchess.com"]
[Source "ChessBase"]
[SourceQuality "1"]
[TimeControl "40/5400+30:1800+30"]

{[%evp 13,55,0,1,9,8,12,18,14,14,39,42,39,59,64,66,51,44,22,22,16,22,8,87,94,199,198,188,188,207,197,379,381,452,413,419,433,429,419,417,424,579,583,579,572]} 1. d4 {[%emt 0:00:20]} d5 {[%emt 0:00:17]} 2. Nf3 {[%emt 0:00:42]} Nf6 {[%emt 0:00:06]} 3. c4 {[%emt 0:00:14]} e6 {[%emt 0:00:07]} 4. g3 {[%emt 0:00:22]} Be7 {[%emt 0:00:18]} 5. Bg2 {[%emt 0:00:04]} O-O {[%emt 0:00:22]} 6. O-O {[%emt 0:00:08]} dxc4 {[%emt 0:00:16]} 7. Qc2 {[%emt 0:00:14]} b5 {[%emt 0:00:09][%cal Bb7b5,Bb5b4][%mdl 32]} 8. a4 {[%emt 0:00:17] E05: Open Catalan: 5 Nf3 Be7.} b4 {[%emt 0:00:08]} 9. Nfd2 {[%emt 0:00:13]} Nd5 {[%emt 0:00:31]} 10. Nxc4 {[%emt 0:00:11] The position is equal.} (10. Qxc4 Ba6 11. Qc2 c5 (11... Bxe2 12. Re1 $17) 12. dxc5 Nd7 $19) 10... c5 {[%emt 0:00:37]} 11. dxc5 {[%emt 0:00:15]} Bxc5 {[%emt 0:01:25]} 12. e4 $1 {[%emt 0:07:00] 12.e4 is better than 12.Rd1.} Nb6 {[%emt 0:03:11]} 13. Ncd2 {[%emt 0:06:09]} Qc7 {[%emt 0:15:43][%cal Oc5f2] [#] ...Bxf2+! would now be deadly.} 14. Nb3 {[%emt 0:01:28]} Na6 $146 {[%emt 0:04:43]} (14... Bd6 15. Qxc7 Bxc7 16. a5 Ba6 17. axb6 Bxb6 18. e5 Bxf1 19. Kxf1 Nd7 20. Bxa8 Rxa8 {1-0 Bjelobrk,I (2405)-Girsh,D (2110) Titled Tuesday intern op 18th Oct Late blitz 2022 (6)}) 15. Nxc5 {[%emt 0:21:50]} Qxc5 {[%emt 0:01:34]} 16. Qe2 {[%emt 0:04:42]} Qc4 $1 {[%emt 0:08:15]} 17. Qd1 {[%emt 0:09:18]} Nc5 {[%emt 0:08:45] [#]} (17... Qc7 $1 $11 {keeps the balance.}) 18. Be3 $1 $36 {[%emt 0:01:32][%mdl 2048] White is on the roll.} Nb3 {[%emt 0:15:27]} (18... Nbd7 $16) 19. Nd2 $18 {[%emt 0:00:58]} Nxd2 {[%emt 0:00:53]} 20. Qxd2 {[%emt 0:00:33]} Qb3 {[%emt 0:00:06]} 21. Bc5 {[%emt 0:01:48]} Ba6 $2 {[%emt 0:15:57]} (21... Re8 {was necessary.} 22. Rfc1 (22. Qxb4 Qxb4 23. Bxb4 Bb7 $18) (22. Bxb4 a5 $16) 22... Bb7 23. Qxb4 Qxb4 24. Bxb4 Rac8) 22. Bxf8 {[%emt 0:05:22]} (22. Qxb4 Qxb4 23. Bxb4 Bxf1 24. Bxf1 Rfb8 $16) 22... Rxf8 {[%emt 0:00:52]} 23. Rfe1 {[%emt 0:07:29]} Nc4 {[%emt 0:01:08]} 24. Qd4 {[%emt 0:01:36]} Nxb2 {[%emt 0:03:18]} 25. Qxa7 {[%emt 0:10:52]} Bd3 {[%emt 0:01:43]} 26. a5 {[%emt 0:01:10][%cal Ba4a5,Ba5a6][%mdl 32]} Nc4 {[%emt 0:05:10]} 27. a6 {[%emt 0:04:32] Hoping for Qc5.} Na3 {[%emt 0:00:36]} 28. Qb7 {[%emt 0:00:58] Weighted Error Value: White=0.04 (flawless) /Black=0.37  Mistake:       	---       	Black=3      Inaccurate:     	---       	Black=1      OK:         	White=11    	Black=8      Best:        	White=4     	---        Strong:       	White=1     	Black=1} 1-0

[Event "Frauenbundesliga 2024-25"]
[Site "Germany"]
[Date "2025.01.26"]
[Round "4.10"]
[White "Straub, Natalia"]
[Black "Mgeladze, Kesaria"]
[Result "0-1"]
[Annotator "TA"]
[ECO "A64"]
[WhiteElo "2132"]
[BlackElo "2157"]
[PlyCount "70"]
[EventDate "2024.11.06"]
[EventType "team-tourn"]
[EventCountry "GER"]
[SourceTitle "playchess.com"]
[Source "ChessBase"]
[SourceQuality "1"]
[TimeControl "40/5400+30:1800+30"]

{[%evp 23,70,18,4,3,12,8,17,0,-12,-16,-22,-16,-30,-92,-99,-88,-82,-108,-131,-149,-134,-114,-56,-64,-71,-229,-232,-244,-236,-269,-196,-696,-675,-623,-606,-681,-652,-782,-635,-2056,-2148,-29970,-29945,-29985,-29986,-29986,-29986,-29985,-29976]} 1. d4 {[%emt 0:00:02]} Nf6 {[%emt 0:00:07]} 2. c4 {[%emt 0:00:04]} g6 {[%emt 0:00:04]} 3. g3 {[%emt 0:00:20]} Bg7 {[%emt 0:00:06]} 4. Bg2 {[%emt 0:00:01]} O-O {[%emt 0:00:10]} 5. Nc3 {[%emt 0:01:19]} d6 {[%emt 0:00:07]} 6. Nf3 {[%emt 0:00:04]} c5 {[%emt 0:00:10]} 7. d5 {[%emt 0:01:06]} e6 {[%emt 0:00:10]} 8. O-O {[%emt 0:00:06]} exd5 {[%emt 0:00:04]} 9. cxd5 {[%emt 0:00:03]} Re8 {[%emt 0:00:05]} 10. Nd2 {[%emt 0:03:04]} a6 {[%emt 0:00:16]} 11. a4 {[%emt 0:00:02]} Nbd7 {[%emt 0:00:08]} 12. h3 {[%emt 0:06:57] 12.h3 scores better than 12.Nc4.} Rb8 {[%emt 0:03:57]} 13. a5 {[%emt 0:02:29] A64: Modern Benoni: Fianchetto Variation: 9...Nbd7 10 Nd2 a6 11 a4 Re8.} b5 {[%emt 0:01:34]} 14. axb6 {[%emt 0:00:16]} Nxb6 {[%emt 0:00:15]} 15. Qc2 {[%emt 0:28:40] The position is equal.} a5 {[%emt 0:09:28]} 16. e4 {[%emt 0:07:40]} Ba6 {[%emt 0:00:29]} 17. Rd1 $1 {[%emt 0:01:17]} Nc4 {[%emt 0:02:54]} 18. Nxc4 $146 {[%emt 0:07:15]} (18. Bf1 $11 {keeps the balance.} Nxd2 19. Bxd2 Bxf1 20. Kxf1) (18. b3 Nxd2 19. Bxd2 Nd7 20. Ra3 {½-½ Sargissian,G (2643)-Damljanovic,B (2595) FRA-chT Top 16 Gp Basse 2008 (9)}) 18... Bxc4 $17 {[%emt 0:00:06]} 19. Ra3 {[%emt 0:04:48] Prevents Bb3} Qb6 {[%emt 0:02:50] Black plays on the queen side and is better} 20. Qd2 {[%emt 0:02:50]} Nd7 {[%emt 0:03:27]} 21. f4 {[%emt 0:11:01] [#]} Bb3 $1 {[%emt 0:05:46] Black is much more active.} 22. Re1 {[%emt 0:02:24]} c4+ {[%emt 0:03:21]} (22... Qb4 $17 23. e5 dxe5) 23. Kh2 $15 {[%emt 0:03:47]} Nc5 {[%emt 0:00:28]} 24. Bf1 $2 {[%emt 0:09:36] Against Nd3. This move loses the game for White.} (24. Rf1 $17) 24... Bxc3 $19 {[%emt 0:05:31]} 25. Qxc3 {[%emt 0:00:32]} Nxe4 {[%emt 0:00:16]} 26. Qf3 {[%emt 0:00:08]} Qd4 {[%emt 0:00:47] [#]} 27. Bg2 $2 {[%emt 0:02:41]} (27. Qe3 Qxd5 28. Bg2) 27... Nd2 {[%emt 0:05:34]} 28. Bxd2 {[%emt 0:04:50]} Qxd2 {[%emt 0:00:05]} 29. Rxe8+ {[%emt 0:00:43]} Rxe8 {[%emt 0:00:05]} 30. f5 {[%emt 0:00:33]} Re2 {[%emt 0:07:15]} 31. fxg6 {[%emt 0:00:17]} hxg6 {[%emt 0:00:05][%cal Oe2f2] and ...Rf2! would now be decisive} 32. Ra1 {[%emt 0:00:53]} Rf2 {[%emt 0:01:46] Black mates.} 33. Qe4 {[%emt 0:00:12]} Bc2 {[%emt 0:00:25]} 34. Qe8+ {[%emt 0:00:11]} Kg7 {[%emt 0:00:03]} 35. Rg1 {[%emt 0:00:10]} Re2 {[%emt 0:00:05] Weighted Error Value: White=0.84/Black=0.15 (very precise)   Mistake:       	White=3     	Black=1      Inaccurate:     	White=2     	---        OK:         	White=3     	Black=5      Best:        	White=2     	Black=5      Strong:       	White=1     	Black=1} 0-1